bitfinex/quotes_BTCUSD_20230901
["timestamp","ask_amount","ask_price","bid_price","bid_amount"]
[1693594162381,1.33718292,25780.0,25776.0,0.02]
[1693594163400,2.07386392,25780.0,25776.0,0.02]
[1693594163598,2.07386392,25780.0,25774.0,0.23483676]
[1693594163599,0.01827892,25775.0,25774.0,0.23483676]
[1693594163854,2.5874767,25775.0,25774.0,0.23483676]
[1693594164009,3.1006967,25775.0,25774.0,0.23483676]
[1693594164184,2.9567227,25775.0,25774.0,0.23483676]
[1693594164386,2.9399227,25775.0,25774.0,0.23483676]
[1693594164642,2.6980427,25775.0,25774.0,0.23483676]
[1693594164845,2.7069827,25775.0,25774.0,0.23483676]
[1693594164998,2.6952827,25775.0,25774.0,0.23483676]
[1693594165200,2.6961227,25775.0,25774.0,0.23483676]
[1693594165465,2.6994827,25775.0,25774.0,0.23483676]
[1693594165792,3.10775687,25775.0,25774.0,0.23483676]
[1693594165957,3.36423687,25775.0,25774.0,0.23483676]
[1693594166172,3.35523687,25775.0,25774.0,0.23483676]
[1693594166371,2.7284027,25775.0,25774.0,0.23483676]
[1693594166621,2.6032427,25775.0,25774.0,0.23483676]
[1693594166786,2.6032427,25775.0,25763.0,0.116443]
[1693594166787,0.04,25773.0,25763.0,0.116443]
[1693594166959,0.04,25773.0,25757.0,0.15526]
[1693594166960,1.786813,25762.0,25757.0,0.15526]
[1693594167136,0.154834,25761.0,25757.0,0.38708678]
[1693594167338,0.154834,25761.0,25759.0,0.02]
[1693594167792,0.154834,25761.0,25757.0,0.06172108]
[1693594167793,0.154834,25761.0,25753.0,0.09026416]
[1693594167998,0.154834,25761.0,25754.0,0.50356878]
[1693594168222,0.154834,25761.0,25754.0,0.62005478]
[1693594168627,0.154834,25761.0,25754.0,0.7742562]
[1693594169059,0.154834,25761.0,25755.0,0.15420142]
[1693594169295,0.154834,25761.0,25756.0,0.38708678]
[1693594169496,0.12,25762.0,25756.0,0.6577652]
[1693594169778,0.274834,25762.0,25756.0,0.6577652]
[1693594170213,0.274834,25762.0,25756.0,0.15420142]
[1693594170214,1.59465,25762.0,25756.0,0.15420142]
[1693594170421,2.176905,25762.0,25756.0,0.15420142]
[1693594170748,0.857561,25762.0,25756.0,0.5412882]
[1693594170952,0.430143,25762.0,25757.0,0.38708678]
[1693594171157,0.275309,25762.0,25757.0,0.5412882]
[1693594172149,0.155309,25762.0,25757.0,0.5412882]
[1693594172347,1.439815,25762.0,25757.0,0.5412882]
[1693594172581,1.439815,25762.0,25757.0,0.38708678]
[1693594172582,1.594649,25762.0,25757.0,0.38708678]
[1693594173021,1.439815,25762.0,25757.0,0.38208678]
[1693594173261,1.284506,25762.0,25757.0,0.38208678]
[1693594173486,1.284506,25762.0,25758.0,0.00031986]
[1693594173933,2.02206,25762.0,25758.0,0.00031986]
[1693594174346,2.02206,25762.0,25753.0,0.116488]
[1693594174557,0.154834,25761.0,25754.0,0.7742602]
[1693594174762,0.737114,25761.0,25754.0,0.7742602]
[1693594175402,0.737114,25761.0,25755.0,0.00031282]
[1693594175610,0.737114,25761.0,25756.0,0.38708678]
[1693594175812,0.58228,25761.0,25756.0,0.5412882]
[1693594176459,0.58228,25761.0,25757.0,0.0003119]
[1693594176705,0.12,25767.0,25758.0,0.50355378]
[1693594176945,0.622134,25768.0,25759.0,0.45420142]
[1693594177185,0.12,25763.0,25759.0,0.5412882]
[1693594177394,1.439319,25763.0,25760.0,0.00031075]
[1693594177677,1.284485,25763.0,25760.0,0.00031075]
[1693594178881,0.3614,25761.0,25760.0,0.00031075]
[1693594179118,2.108225,25761.0,25760.0,0.00031075]
[1693594179324,2.108225,25761.0,25753.0,0.232977]
[1693594179534,0.154834,25760.0,25754.0,0.38708678]
[1693594179747,0.582323,25759.0,25754.0,0.38708678]
[1693594179976,0.154834,25759.0,25754.0,0.62005778]
[1693594180246,0.154834,25759.0,25754.0,0.73654378]
[1693594180483,0.843614,25764.0,25757.0,0.38708678]
[1693594180484,0.12,25764.0,25757.0,0.38708678]
[1693594180698,0.12,25764.0,25758.0,0.38713542]
[1693594180920,0.12,25764.0,25759.0,0.38708678]
[1693594181152,0.12,25764.0,25759.0,0.5412882]
[1693594181153,0.839211,25764.0,25759.0,0.5412882]
[1693594181372,0.02,25762.0,25759.0,0.00031954]
[1693594181592,0.582275,25761.0,25759.0,0.00031954]
[1693594182426,0.582275,25761.0,25755.0,0.00032139]
[1693594182427,1.866825,25761.0,25755.0,0.00032139]
[1693594182633,0.154834,25760.0,25755.0,0.38740817]
[1693594182844,1.31946,25760.0,25755.0,0.38740817]
[1693594183263,1.31946,25760.0,25756.0,0.00032093]
[1693594183472,1.264626,25760.0,25756.0,0.00032093]
[1693594183895,0.1,25758.0,25756.0,0.00032093]
[1693594184110,0.682344,25758.0,25756.0,0.00032093]
[1693594184322,0.682344,25758.0,25755.0,0.38740817]
[1693594184747,0.582275,25761.0,25756.0,0.38708678]
[1693594184963,0.1,25763.0,25757.0,0.38714142]
[1693594185186,0.1,25763.0,25758.0,0.38708678]
[1693594185396,0.1,25763.0,25759.0,0.15420142]
[1693594185630,0.1,25763.0,25760.0,0.38708678]
[1693594186085,0.1,25761.0,25759.0,0.01564963]
[1693594186326,1.164596,25760.0,25759.0,0.01564963]
[1693594186815,1.164596,25760.0,25755.0,0.00032139]
[1693594187033,0.154834,25760.0,25756.0,0.50356278]
[1693594187244,0.702278,25761.0,25756.0,0.40304032]
[1693594187454,1.439406,25761.0,25756.0,0.40304032]
[1693594187676,0.1,25758.0,25756.0,0.40304032]
[1693594187909,0.1,25758.0,25756.0,0.01595354]
[1693594190044,0.682344,25758.0,25756.0,0.01595354]
[1693594190703,0.702344,25758.0,25756.0,0.01595354]
[1693594191518,0.702344,25758.0,25755.0,0.00032139]
[1693594191724,0.702344,25758.0,25755.0,0.38740817]
[1693594191931,0.02,25756.0,25755.0,0.38740817]
[1693594192420,0.02,25756.0,25755.0,0.00032139]
[1693594192421,1.827164,25756.0,25755.0,0.00032139]
[1693594192946,1.822164,25756.0,25755.0,0.00032139]
[1693594193159,1.239776,25756.0,25755.0,0.00032139]
[1693594194209,1.822164,25756.0,25755.0,0.00032139]
[1693594194843,2.76351078,25756.0,25755.0,0.00032139]
[1693594195052,2.77317078,25756.0,25755.0,0.00032139]
[1693594195273,2.78775078,25756.0,25755.0,0.00032139]
[1693594195495,2.81406698,25756.0,25755.0,0.00032139]
[1693594195712,2.81412698,25756.0,25755.0,0.00032139]
[1693594195915,2.81490698,25756.0,25755.0,0.00032139]
[1693594196121,2.80434698,25756.0,25755.0,0.00032139]
[1693594196324,2.68125078,25756.0,25755.0,0.00032139]
[1693594196753,1.822164,25756.0,25755.0,0.00032139]
[1693594200325,2.68845078,25756.0,25755.0,0.00032139]
[1693594200512,2.75475078,25756.0,25755.0,0.00032139]
[1693594200767,2.68125078,25756.0,25755.0,0.00032139]
[1693594200973,2.75781078,25756.0,25755.0,0.00032139]
[1693594201177,2.75703078,25756.0,25755.0,0.00032139]
[1693594201383,2.75811078,25756.0,25755.0,0.00032139]
[1693594201590,2.75781078,25756.0,25755.0,0.00032139]
[1693594201791,2.77335078,25756.0,25755.0,0.00032139]
[1693594201975,2.77395078,25756.0,25755.0,0.00032139]
[1693594202207,2.77857078,25756.0,25755.0,0.00032139]
[1693594202419,2.79227078,25756.0,25755.0,0.00032139]
[1693594202633,2.85020698,25756.0,25755.0,0.00032139]
[1693594202838,2.84996698,25756.0,25755.0,0.00032139]
[1693594203077,2.85116698,25756.0,25755.0,0.00032139]
[1693594203281,2.85338698,25756.0,25755.0,0.00032139]
[1693594203493,2.84312698,25756.0,25755.0,0.00032139]
[1693594203651,2.84390698,25756.0,25755.0,0.00032139]
[1693594203850,2.84540698,25756.0,25755.0,0.00032139]
[1693594204068,3.01761858,25756.0,25755.0,0.00032139]
[1693594204244,0.552,25752.0,25751.0,0.019796]
[1693594204449,4.62879478,25752.0,25751.0,0.019796]
[1693594204691,4.62801698,25752.0,25751.0,0.019796]
[1693594204826,4.62933698,25752.0,25751.0,0.019796]
[1693594205030,4.63149698,25752.0,25751.0,0.019796]
[1693594205254,0.472,25749.0,25748.0,0.019796]
[1693594205462,3.77181678,25749.0,25748.0,0.019796]
[1693594205663,3.85181678,25749.0,25748.0,0.019796]
[1693594206070,3.88237578,25749.0,25748.0,0.019796]
[1693594206271,3.95509578,25749.0,25748.0,0.019796]
[1693594206474,3.95509578,25749.0,25744.0,0.019796]
[1693594206475,0.08,25745.0,25744.0,0.019796]
[1693594206677,3.01246878,25745.0,25744.0,0.019796]
[1693594207031,2.85763478,25745.0,25744.0,0.019796]
[1693594208314,2.410548,25745.0,25744.0,0.019796]
[1693594208515,1.827911,25745.0,25744.0,0.019796]
[1693594209549,1.827911,25745.0,25744.0,0.03644107]
[1693594209969,1.827911,25745.0,25744.0,0.02014667]
[1693594210386,1.827911,25745.0,25744.0,0.019796]
[1693594210805,2.21499778,25745.0,25744.0,0.019796]
[1693594211011,2.62699778,25745.0,25744.0,0.019796]
[1693594211216,2.21499778,25745.0,25744.0,0.019796]
[1693594211425,1.827911,25745.0,25744.0,0.019796]
[1693594212411,2.69803778,25745.0,25744.0,0.019796]
[1693594212616,2.76853778,25745.0,25744.0,0.019796]
[1693594212834,2.76907778,25745.0,25744.0,0.019796]
[1693594213084,2.77111778,25745.0,25744.0,0.019796]
[1693594213261,2.76727778,25745.0,25744.0,0.019796]
[1693594213461,3.01403778,25745.0,25744.0,0.019796]
[1693594213682,3.00071778,25745.0,25744.0,0.019796]
[1693594213823,2.92889778,25745.0,25744.0,0.019796]
[1693594214232,3.03857778,25745.0,25744.0,0.019796]
[1693594214428,2.51689778,25745.0,25744.0,0.019796]
[1693594215085,3.00263778,25745.0,25744.0,0.019796]
[1693594215290,3.02321778,25745.0,25744.0,0.019796]
[1693594215727,3.02609778,25745.0,25744.0,0.019796]
[1693594215932,3.02873778,25745.0,25744.0,0.019796]
[1693594216151,3.02339778,25745.0,25744.0,0.019796]
[1693594216358,3.02711778,25745.0,25744.0,0.019796]
[1693594216564,3.01751778,25745.0,25744.0,0.019796]
[1693594216783,3.01751778,25745.0,25733.0,0.0312614]
[1693594216784,0.12,25735.0,25733.0,0.0312614]
[1693594216996,0.12,25735.0,25728.0,0.55567533]
[1693594216997,0.552,25729.0,25728.0,0.01904109]
[1693594217219,2.19991878,25729.0,25728.0,0.01904109]
[1693594217444,0.174834,25729.0,25728.0,0.01904109]
[1693594217655,0.02,25729.0,25728.0,0.01904109]
[1693594217869,0.02,25729.0,25721.0,0.90927817]
[1693594217870,1.165919,25731.0,25721.0,0.17660987]
[1693594218089,0.582941,25732.0,25722.0,0.50371378]
[1693594218090,0.602999,25729.0,25722.0,0.50371378]
[1693594218320,0.824841,25732.0,25723.0,0.05997787]
[1693594218321,0.154834,25728.0,25723.0,0.05997787]
[1693594218539,1.12058426,25727.0,25724.0,0.62032678]
[1693594218765,1.12058426,25727.0,25725.0,0.3]
[1693594218994,1.12058426,25727.0,25726.0,0.50369978]
[1693594219236,1.12058426,25730.0,25726.0,0.80369978]
[1693594219468,1.12058426,25729.0,25727.0,0.14920142]
[1693594219693,0.06,25734.0,25728.0,0.73689878]
[1693594219916,0.02,25733.0,25729.0,0.14920142]
[1693594220132,0.02,25733.0,25730.0,0.38708678]
[1693594220562,0.215477,25734.0,25730.0,0.38708678]
[1693594220770,0.02,25733.0,25730.0,0.5362882]
[1693594220983,0.02,25733.0,25730.0,0.38708678]
[1693594221203,0.02,25733.0,25730.0,0.50368078]
[1693594221423,0.175477,25734.0,25730.0,0.50368078]
[1693594221643,0.02,25733.0,25728.0,0.116601]
[1693594221874,0.17483471,25733.0,25729.0,0.38708678]
[1693594222096,0.02,25733.0,25729.0,0.38708678]
[1693594222297,0.02,25733.0,25730.0,0.00039127]
[1693594223560,1.34065271,25733.0,25730.0,0.00039127]
[1693594223776,1.768727,25733.0,25730.0,0.00039127]
[1693594223974,0.02,25731.0,25730.0,0.00039127]
[1693594224178,1.768862,25731.0,25730.0,0.00039127]
[1693594224395,0.02,25725.0,25718.0,0.261696]
[1693594224623,0.99986071,25724.0,25719.0,0.1846]
[1693594224826,1.58298671,25724.0,25718.0,0.52353178]
[1693594225027,1.58298671,25724.0,25718.0,0.40688278]
[1693594225028,0.02,25723.0,25718.0,0.40688278]
[1693594225260,0.15483471,25722.0,25718.0,0.40688278]
[1693594225474,0.02,25721.0,25718.0,0.019796]
[1693594225702,0.17483471,25721.0,25718.0,0.019796]
[1693594226120,0.02,25721.0,25718.0,0.019796]
[1693594227008,0.02,25721.0,25718.0,0.40688278]
[1693594227205,0.02,25721.0,25718.0,0.52352978]
[1693594227410,0.02,25721.0,25718.0,0.64017878]
[1693594227617,0.583112,25725.0,25719.0,0.38708678]
[1693594227618,0.02,25725.0,25719.0,0.38708678]
[1693594227828,0.02,25726.0,25721.0,0.02]
[1693594228029,0.02,25726.0,25722.0,0.7695482]
[1693594228660,0.02,25726.0,25722.0,0.8861792]
[1693594228866,0.02,25727.0,25722.0,0.62034678]
[1693594229065,0.02,25727.0,25722.0,0.7695482]
[1693594229264,0.02,25727.0,25722.0,0.7606282]
[1693594229702,0.02,25728.0,25722.0,0.8772592]
[1693594229921,0.02,25729.0,25723.0,0.14920142]
[1693594230131,0.02,25728.0,25724.0,0.7695262]
[1693594230336,0.02,25728.0,25724.0,0.62032478]
[1693594231092,0.02,25727.0,25721.0,0.02]
[1693594231304,0.75790771,25726.0,25721.0,0.02]
[1693594231513,1.34098071,25726.0,25721.0,0.02]
[1693594231714,1.34098071,25726.0,25722.0,0.04312738]
[1693594232135,1.34098071,25726.0,25721.0,0.02]
[1693594232136,1.186146,25726.0,25721.0,0.02]
[1693594232310,1.186146,25726.0,25723.0,0.00034068]
[1693594232311,1.34098071,25726.0,25723.0,0.00034068]
[1693594232508,1.186146,25726.0,25723.0,0.03181203]
[1693594233371,1.186146,25726.0,25723.0,0.03147135]
[1693594233796,1.186146,25726.0,25721.0,0.02]
[1693594234007,1.34098071,25726.0,25721.0,0.02]
[1693594234413,1.34098071,25726.0,25722.0,0.00035158]
[1693594234618,1.186146,25726.0,25722.0,0.00035158]
[1693594234843,0.02,25726.0,25722.0,0.53663978]
[1693594235038,0.02,25726.0,25722.0,0.88653178]
[1693594235248,0.02,25726.0,25722.0,0.73733036]
[1693594235453,0.02,25726.0,25722.0,0.23361258]
[1693594235858,0.02,25726.0,25722.0,0.73733036]
[1693594237021,1.341532,25729.0,25723.0,0.38708678]
[1693594237201,0.155502,25729.0,25724.0,0.49905542]
[1693594237425,0.02,25732.0,25725.0,0.70706465]
[1693594237640,0.02,25732.0,25727.0,0.466432]
[1693594238022,0.02,25733.0,25728.0,0.5362882]
[1693594238211,0.02,25733.0,25731.0,0.11659]
[1693594238212,0.02,25732.0,25731.0,0.11659]
[1693594238429,0.02,25733.0,25731.0,0.50367578]
[1693594238754,0.02,25733.0,25728.0,0.14920142]
[1693594238755,0.02,25732.0,25728.0,0.26580342]
[1693594238883,0.17483471,25732.0,25728.0,0.50368878]
[1693594239038,0.02,25729.0,25724.0,0.1852]
[1693594239213,0.02,25727.0,25724.0,0.1852]
[1693594239414,0.02,25727.0,25721.0,0.116635]
[1693594239415,0.15483471,25726.0,25721.0,0.116635]
[1693594239625,0.15483471,25726.0,25722.0,0.3]
[1693594239626,0.73791271,25726.0,25722.0,0.3]
[1693594239826,0.73791271,25726.0,25722.0,0.3309663]
[1693594240205,0.02,25727.0,25723.0,0.38708678]
[1693594240616,0.02,25727.0,25723.0,0.50371078]
[1693594240825,0.02,25727.0,25723.0,0.38708678]
[1693594241040,0.02,25727.0,25722.0,0.5642253]
[1693594241041,1.34094671,25727.0,25722.0,0.3309663]
[1693594241711,1.34094671,25727.0,25722.0,0.4475973]
[1693594242080,0.603049,25727.0,25722.0,0.5642283]
[1693594242281,0.02,25727.0,25722.0,1.2171475]
[1693594242743,0.02,25727.0,25722.0,1.06794608]
[1693594242973,0.17483471,25727.0,25722.0,0.5642283]
[1693594243180,1.34093271,25727.0,25722.0,0.3309663]
[1693594243400,1.92398571,25727.0,25722.0,0.3309663]
[1693594243880,0.08,25723.0,25722.0,0.0309663]
[1693594244084,1.829405,25723.0,25722.0,0.0309663]
[1693594244290,1.24627,25723.0,25722.0,0.0309663]
[1693594244498,0.02,25719.0,25718.0,0.019796]
[1693594244723,0.17483471,25719.0,25718.0,0.0451065]
[1693594244928,0.02,25719.0,25718.0,0.0451065]
[1693594245151,0.02,25720.0,25718.0,0.019796]
[1693594245377,0.02,25721.0,25719.0,0.38708678]
[1693594245601,0.804345,25727.0,25720.0,0.23328]
[1693594245602,0.02,25724.0,25720.0,0.23328]
[1693594245815,0.06,25725.0,25721.0,0.5362882]
[1693594245816,0.02,25725.0,25721.0,0.5362882]
[1693594246035,0.02,25725.0,25722.0,0.11663]
[1693594246250,0.02,25725.0,25722.0,0.26583142]
[1693594246503,0.02,25725.0,25722.0,0.11663]
[1693594247144,0.02,25725.0,25723.0,0.02961018]
[1693594247357,0.02,25725.0,25723.0,0.14623418]
[1693594247560,0.02,25726.0,25723.0,0.14623418]
[1693594247765,0.02,25725.0,25723.0,0.14623418]
[1693594248181,0.02,25725.0,25723.0,0.02961018]
[1693594248623,0.02,25725.0,25721.0,0.233266]
[1693594248840,0.02,25725.0,25723.0,0.116626]
[1693594249088,0.02,25725.0,25723.0,0.233253]
[1693594249511,0.02,25725.0,25723.0,0.116626]
[1693594249731,0.02,25725.0,25722.0,0.116631]
[1693594249954,0.02,25725.0,25722.0,0.116629]
[1693594250173,0.02,25725.0,25722.0,0.349891]
[1693594250429,0.02,25725.0,25722.0,0.73697778]
[1693594251062,0.02,25725.0,25722.0,0.62034678]
[1693594251275,0.02,25725.0,25721.0,0.233268]
[1693594251491,0.02,25725.0,25719.0,0.116642]
[1693594251492,0.15483471,25725.0,25719.0,0.116642]
[1693594251693,0.02,25721.0,25719.0,0.38708678]
[1693594251916,0.02,25721.0,25719.0,0.50373078]
[1693594252137,0.02,25721.0,25719.0,0.62037578]
[1693594252574,0.02,25721.0,25718.0,0.136441]
[1693594253033,0.02,25721.0,25718.0,0.019796]
[1693594253243,0.06,25719.0,25718.0,0.019796]
[1693594253882,0.08,25719.0,25718.0,0.019796]
[1693594254521,0.08,25719.0,25718.0,0.04814156]
[1693594255555,0.08,25719.0,25718.0,0.04314156]
[1693594255760,2.62876478,25719.0,25718.0,0.04314156]
[1693594256391,2.62876478,25719.0,25718.0,0.014796]
[1693594256654,2.68876478,25719.0,25718.0,0.014796]
[1693594256836,2.76382478,25719.0,25718.0,0.014796]
[1693594257046,2.76052478,25719.0,25718.0,0.014796]
[1693594257257,0.06,25710.0,25706.0,0.09064821]
[1693594257476,0.15483471,25709.0,25708.0,0.116693]
[1693594257688,0.15483471,25709.0,25707.0,0.50378278]
[1693594257689,0.23405091,25709.0,25707.0,0.02714205]
[1693594257915,0.08,25708.0,25707.0,0.02714205]
[1693594258132,0.02,25705.0,25703.0,0.13651]
[1693594258349,0.02,25705.0,25703.0,0.0451616]
[1693594258350,0.23483471,25704.0,25703.0,0.0451616]
[1693594258990,0.06,25706.0,25704.0,0.2740509]
[1693594259228,0.06,25706.0,25704.0,0.3907609]
[1693594259444,0.08,25705.0,25704.0,0.2740509]
[1693594259897,0.23626573,25706.0,25704.0,0.2740509]
[1693594260148,0.04062673,25706.0,25705.0,0.38708678]
[1693594260357,0.04062673,25706.0,25704.0,0.2740509]
[1693594260605,0.04062673,25706.0,25704.0,0.89456068]
[1693594260827,0.06,25705.0,25704.0,0.66113768]
[1693594261055,0.04062673,25706.0,25704.0,0.66113768]
[1693594261265,0.04062673,25706.0,25705.0,0.38708678]
[1693594261488,0.04062575,25706.0,25705.0,0.62050278]
[1693594261694,0.10062575,25706.0,25705.0,0.62050278]
[1693594262117,0.04062575,25706.0,25705.0,0.62050278]
[1693594262322,0.07203692,25706.0,25705.0,0.64776436]
[1693594262539,0.11705241,25708.0,25707.0,0.05997787]
[1693594262540,0.17410441,25708.0,25707.0,0.05997787]
[1693594262766,0.17410441,25708.0,25707.0,1.18846307]
[1693594263003,0.05705241,25708.0,25707.0,1.15596065]
[1693594263213,0.05705241,25708.0,25707.0,1.21386065]
[1693594263422,0.01175869,25709.0,25707.0,1.21386065]
[1693594263423,0.01175869,25709.0,25708.0,0.05997787]
[1693594263637,0.01175869,25709.0,25708.0,1.09714965]
[1693594264063,0.01175869,25709.0,25708.0,1.33924965]
[1693594264511,0.01175869,25709.0,25708.0,1.09714965]
[1693594264967,0.01175869,25709.0,25708.0,0.68708678]
[1693594265193,0.04,25708.0,25705.0,0.02726158]
[1693594265383,0.19483471,25708.0,25705.0,0.02726158]
[1693594265610,0.08062436,25708.0,25706.0,0.38708678]
[1693594265820,0.08062436,25708.0,25707.0,0.233398]
[1693594266026,0.08062436,25708.0,25707.0,0.62048478]
[1693594266240,0.08062436,25708.0,25705.0,0.14396758]
[1693594266442,0.08062436,25708.0,25705.0,0.53105636]
[1693594267073,0.08062436,25708.0,25705.0,0.64776436]
[1693594267482,0.08062496,25708.0,25705.0,0.64776436]
[1693594267710,0.06,25706.0,25705.0,0.02726158]
[1693594268323,0.08,25706.0,25705.0,0.02726158]
[1693594268945,0.06,25704.0,25703.0,0.019796]
[1693594270626,0.235647,25704.0,25703.0,0.019796]
[1693594272216,0.819213,25704.0,25703.0,0.019796]
[1693594272627,1.402779,25704.0,25703.0,0.019796]
[1693594272836,1.986345,25704.0,25703.0,0.019796]
[1693594273775,1.402779,25704.0,25703.0,0.019796]
[1693594274603,3.17271178,25704.0,25703.0,0.019796]
[1693594274827,3.16491178,25704.0,25703.0,0.019796]
[1693594275036,3.16623178,25704.0,25703.0,0.019796]
[1693594275235,3.17247178,25704.0,25703.0,0.019796]
[1693594275441,3.16183178,25704.0,25703.0,0.019796]
[1693594275672,3.16219178,25704.0,25703.0,0.019796]
[1693594275881,3.20183178,25704.0,25703.0,0.019796]
[1693594276091,3.20261178,25704.0,25703.0,0.019796]
[1693594276298,3.26241016,25704.0,25703.0,0.019796]
[1693594276497,3.25653016,25704.0,25703.0,0.019796]
[1693594276719,2.29846338,25704.0,25703.0,0.019796]
[1693594276961,0.29418538,25704.0,25703.0,0.019796]
[1693594277188,0.29418538,25704.0,25703.0,0.04560936]
[1693594277412,1.46131738,25704.0,25703.0,0.04560936]
[1693594277821,0.45578538,25704.0,25703.0,0.04560936]
[1693594278028,0.29418538,25704.0,25703.0,0.019796]
[1693594279356,0.29418538,25704.0,25703.0,0.51914842]
[1693594279600,1.246874,25710.0,25703.0,0.51914842]
[1693594279601,0.06,25705.0,25703.0,0.9062352]
[1693594279804,0.06,25705.0,25704.0,0.38708678]
[1693594280010,0.06,25705.0,25704.0,0.73722578]
[1693594280211,0.790404,25715.0,25704.0,0.89882578]
[1693594280434,0.06,25708.0,25706.0,0.1616]
[1693594280637,0.06,25708.0,25707.0,0.38708678]
[1693594280847,0.06,25713.0,25707.0,0.8863852]
[1693594281059,0.02,25713.0,25708.0,0.31080142]
[1693594281262,0.02,25713.0,25711.0,0.35004]
[1693594281466,0.1816,25722.0,25711.0,0.51164]
[1693594281686,0.06,25715.0,25713.0,0.1616]
[1693594281889,0.06,25715.0,25714.0,0.50375078]
[1693594282312,0.25206245,25715.0,25714.0,0.50375078]
[1693594282519,0.25206245,25715.0,25712.0,0.116674]
[1693594282720,0.02,25713.0,25711.0,0.233359]
[1693594282941,0.02,25713.0,25711.0,0.62044578]
[1693594283345,0.02,25713.0,25711.0,0.73712678]
[1693594284187,0.02,25713.0,25712.0,0.38708678]
[1693594284394,0.02,25713.0,25711.0,0.116679]
[1693594284643,0.06,25712.0,25710.0,0.233366]
[1693594284849,0.21483471,25712.0,25710.0,0.116683]
[1693594285054,0.06,25712.0,25710.0,0.116683]
[1693594286308,0.21825739,25711.0,25710.0,0.116683]
[1693594287586,0.08,25707.0,25705.0,0.116708]
[1693594287786,0.06,25706.0,25705.0,0.233416]
[1693594287914,0.06,25706.0,25705.0,0.38969749]
[1693594288150,0.06,25706.0,25705.0,0.27298949]
[1693594288359,0.06,25706.0,25705.0,0.38969749]
[1693594288945,0.06,25706.0,25705.0,0.73721078]
[1693594289384,0.06,25706.0,25705.0,0.62050278]
[1693594289610,0.492,25704.0,25703.0,0.04560694]
[1693594289809,2.60399752,25704.0,25703.0,0.04560694]
[1693594290133,3.35912952,25704.0,25703.0,0.04560694]
[1693594290398,3.20429481,25704.0,25703.0,0.019796]
[1693594290834,3.35997781,25704.0,25703.0,0.019796]
[1693594291034,3.89499781,25704.0,25703.0,0.019796]
[1693594291159,3.89241781,25704.0,25703.0,0.019796]
[1693594291362,3.85947781,25704.0,25703.0,0.019796]
[1693594291568,0.49862703,25704.0,25703.0,0.019796]
[1693594291994,0.235683,25704.0,25703.0,0.136513]
[1693594292190,0.235683,25704.0,25703.0,0.2785959]
[1693594292397,0.06,25708.0,25703.0,0.96289888]
[1693594292615,0.33768382,25707.0,25704.0,0.7784882]
[1693594292823,0.06,25707.0,25705.0,0.350116]
[1693594293146,0.02,25708.0,25703.0,0.07645968]
[1693594293147,0.08,25706.0,25703.0,0.07645968]
[1693594293347,0.06,25705.0,25703.0,0.07645968]
[1693594293554,0.08,25704.0,25703.0,0.05109378]
[1693594294389,0.08,25704.0,25703.0,0.019796]
[1693594294602,0.235658,25704.0,25703.0,0.019796]
[1693594295892,0.235658,25704.0,25703.0,0.04247882]
[1693594296315,1.986356,25704.0,25703.0,0.04247882]
[1693594296520,1.40279,25704.0,25703.0,0.04247882]
[1693594296924,1.40279,25704.0,25703.0,0.019796]
[1693594296925,0.235658,25704.0,25703.0,0.019796]
[1693594297330,0.235658,25704.0,25703.0,0.04254323]
[1693594297530,0.235658,25704.0,25703.0,0.019796]
[1693594299389,0.235658,25704.0,25703.0,0.04252398]
[1693594300891,2.94544278,25704.0,25703.0,0.04252398]
[1693594301127,3.04378278,25704.0,25703.0,0.04252398]
[1693594301443,3.04624278,25704.0,25703.0,0.019796]
[1693594301600,3.03466278,25704.0,25703.0,0.019796]
[1693594301798,3.02458278,25704.0,25703.0,0.019796]
[1693594302015,0.314378,25704.0,25703.0,0.019796]
[1693594302399,0.314378,25704.0,25703.0,0.25323]
[1693594302400,0.235658,25704.0,25703.0,0.25323]
[1693594302578,0.235658,25704.0,25703.0,0.136513]
[1693594302712,0.08,25704.0,25703.0,0.136513]
[1693594302916,0.08,25704.0,25703.0,0.15849399]
[1693594305363,0.08,25704.0,25703.0,0.04177699]
[1693594307655,1.247132,25704.0,25703.0,0.04177699]
[1693594307862,1.830698,25704.0,25703.0,0.04177699]
[1693594308069,1.830698,25704.0,25703.0,0.019796]
[1693594308488,2.71918478,25704.0,25703.0,0.019796]
[1693594308690,2.90860478,25704.0,25703.0,0.019796]
[1693594308890,2.89382478,25704.0,25703.0,0.019796]
[1693594309114,2.85974478,25704.0,25703.0,0.019796]
[1693594309342,2.87540478,25704.0,25703.0,0.019796]
[1693594309566,2.056458,25704.0,25703.0,0.019796]
[1693594309754,0.08,25704.0,25703.0,0.019796]
[1693594310408,1.830698,25704.0,25703.0,0.019796]
[1693594310619,2.74454478,25704.0,25703.0,0.019796]
[1693594310836,2.74118478,25704.0,25703.0,0.019796]
[1693594311041,2.87078478,25704.0,25703.0,0.019796]
[1693594311243,2.88326478,25704.0,25703.0,0.019796]
[1693594311445,2.88050478,25704.0,25703.0,0.019796]
[1693594311672,2.87828478,25704.0,25703.0,0.019796]
[1693594311859,2.87744478,25704.0,25703.0,0.019796]
[1693594311983,2.87906478,25704.0,25703.0,0.019796]
[1693594312181,2.88284478,25704.0,25703.0,0.019796]
[1693594312405,2.89280478,25704.0,25703.0,0.019796]
[1693594312605,2.88398478,25704.0,25703.0,0.019796]
[1693594312815,2.88386478,25704.0,25703.0,0.019796]
[1693594313110,2.88740478,25704.0,25703.0,0.019796]
[1693594313314,2.88740478,25704.0,25703.0,0.16899742]
[1693594313315,0.643566,25704.0,25703.0,0.16899742]
[1693594313493,0.02,25705.0,25703.0,0.7895182]
[1693594313724,0.08,25705.0,25703.0,0.81151968]
[1693594313929,0.02,25705.0,25703.0,0.66231826]
[1693594314358,0.06,25704.0,25703.0,0.66231826]
[1693594314558,0.06,25705.0,25703.0,0.66231826]
[1693594314805,0.06,25705.0,25703.0,0.77903526]
[1693594315058,0.06,25705.0,25704.0,0.3]
[1693594317027,0.02,25705.0,25704.0,0.92051278]
[1693594317242,0.06,25705.0,25704.0,0.3]